bitfinex-derivatives/quotes_SOLF0:USTF0_20250924
["timestamp","ask_amount","ask_price","bid_price","bid_amount"]
[1758721077268,4.2435,212.01,211.88,102.46]
[1758721077474,7.31,212.0,211.86,120.92]
[1758721077870,4.2442,211.97,211.86,120.92]
[1758721078065,7.31,212.0,211.87,66.0505]
[1758721078271,7.31,212.05,211.89,66.0449]
[1758721079474,7.31,212.05,211.92,66.0357]
[1758721079870,7.31,212.05,211.91,66.0393]
[1758721079871,7.31,212.05,211.95,4.2445]
[1758721080273,0.71206806,212.11,211.94,121.04]
[1758721080474,4.2421,212.07,211.97,4.244]
[1758721080673,7.81,212.1,211.94,121.04]
[1758721080674,7.81,212.1,211.95,66.0265]
[1758721080873,7.81,212.1,211.96,66.0224]
[1758721081170,7.81,212.1,211.94,121.04]
[1758721081573,4.242,212.08,211.98,4.2439]
[1758721081775,352.22833594,212.16,211.98,4.2439]
[1758721081776,351.37,212.16,211.98,66.0169]
[1758721081972,65.9647,212.15,211.99,66.0142]
[1758721082171,4.2414,212.11,211.99,4.2436]
[1758721082479,351.37,212.16,211.99,66.0135]
[1758721082682,4.241,212.13,212.0,4.2434]
[1758721082880,4.241,212.13,211.99,66.0141]
[1758721083081,4.241,212.13,211.97,8.66833594]
[1758721083686,73.7841,212.12,211.99,4.2437]
[1758721083980,7.81,212.12,211.99,115.4037]
[1758721084185,4.2416,212.1,211.99,115.4037]
[1758721084386,65.9864,212.08,211.99,111.16]
[1758721084578,7.81,212.07,211.99,111.16]
[1758721084977,12.0523,212.07,211.99,111.16]
[1758721085179,7.81,212.07,211.99,111.16]
[1758721085691,7.81,212.02,211.9,120.9]
[1758721086278,12.0532,212.02,211.9,125.1455]
[1758721086584,7.81,212.07,211.91,66.0388]
[1758721086777,7.81,212.07,211.96,4.2443]
[1758721087083,7.81,212.07,211.93,66.0328]
[1758721087084,7.81,212.07,211.94,66.029]
[1758721087580,8.66833594,212.09,211.9,3.90279857]
[1758721087880,4.244,211.98,211.84,120.88]
[1758721088079,73.8125,212.03,211.84,120.88]
[1758721088279,7.81,212.03,211.84,120.88]
[1758721088480,4.2433,212.02,211.84,186.9404]
[1758721088876,4.2433,212.02,211.89,4.2457]
[1758721089281,7.81,212.03,211.87,8.66833594]
[1758721089480,7.81,212.03,211.91,4.2453]
[1758721089680,7.81,212.03,211.92,121.36]
[1758721090077,7.81,212.08,211.95,4.2445]
[1758721090280,7.81,212.08,211.93,66.0318]
[1758721090485,4.2423,212.07,211.92,121.36]
[1758721090788,7.81,212.08,211.96,4.2441]
[1758721090977,7.81,212.08,211.95,66.027]
[1758721091182,7.81,212.08,211.97,66.0206]
[1758721091382,7.81,212.08,211.98,121.32]
[1758721091888,4.2424,212.06,211.98,121.32]
[1758721092288,65.99,212.07,211.98,121.32]
[1758721092482,7.81,212.01,211.98,121.32]
[1758721092676,7.81,212.01,211.88,0.98032531]
[1758721092881,7.81,212.01,211.93,121.4]
[1758721093088,4.2436,212.0,211.93,121.4]
[1758721094193,7.81,212.01,211.93,121.4]
[1758721094689,12.0534,212.01,211.93,121.4]
[1758721095478,7.81,212.01,211.93,121.4]
[1758721095679,7.81,212.07,211.93,187.4326]
[1758721095883,7.81,212.07,211.93,121.4]
[1758721096492,7.81,212.07,211.94,4.2447]
[1758721096989,7.81,212.04,211.92,121.28]
[1758721097893,66.0023,212.03,211.92,121.28]
[1758721098079,66.0063,212.02,211.88,5.22612531]
[1758721098280,66.0023,212.03,211.88,0.98032531]
[1758721098281,66.0148,211.99,211.88,0.98032531]
[1758721098585,4.2448,211.94,211.88,0.98032531]
[1758721098887,4.2448,211.94,211.87,121.32]
[1758721099394,7.81,211.97,211.87,121.32]
[1758721099395,4.2452,211.92,211.87,121.32]
[1758721099689,7.81,211.97,211.87,121.32]
[1758721099879,4.2445,211.96,211.87,121.32]
[1758721100086,4.2445,211.96,211.83,121.24]
[1758721100087,66.0241,211.96,211.83,121.24]
[1758721100281,66.0241,211.96,211.78,3.90279857]
[1758721100282,66.0376,211.92,211.78,3.90279857]
[1758721100589,66.0429,211.9,211.75,8.66833594]
[1758721100789,7.81,211.89,211.76,94.12]
[1758721100985,4.2465,211.86,211.76,94.12]
[1758721101591,4.2462,211.87,211.76,94.12]
[1758721101986,7.81,211.89,211.76,94.12]
[1758721103585,7.81,211.89,211.76,98.3683]
[1758721103893,157.7441,211.96,211.78,66.0796]
[1758721103894,7.41,211.95,211.78,66.0796]
[1758721104191,7.41,211.95,211.77,66.0831]
[1758721104586,4.245,211.93,211.83,4.247]
[1758721105186,73.4378,211.95,211.78,66.0796]
[1758721105491,7.41,211.95,211.78,66.0796]
[1758721105892,7.41,211.92,211.8,66.0736]
[1758721106391,7.41,211.92,211.77,66.0831]
[1758721106392,4.2454,211.91,211.81,4.2472]
[1758721106692,7.41,211.92,211.81,4.2472]
[1758721107085,7.41,211.92,211.81,66.0694]
[1758721107587,7.41,211.92,211.79,66.0743]
[1758721107991,7.41,211.92,211.81,66.0702]
[1758721108182,7.41,211.97,211.85,66.0581]
[1758721108383,7.41,211.97,211.85,187.1981]
[1758721108589,124.48518201,211.99,211.87,66.0515]
[1758721108889,124.48518201,211.99,211.85,121.14]
[1758721109490,73.4288,211.98,211.84,121.22]
[1758721110197,74.67013594,212.04,211.84,121.22]
[1758721110198,7.41,212.01,211.84,66.0587]
[1758721110393,7.41,212.01,211.85,66.0574]
[1758721110691,66.0127,212.0,211.82,8.66833594]
[1758721110992,7.41,211.98,211.81,187.3304]
[1758721111296,7.41,211.98,211.86,66.0549]
[1758721111690,7.41,211.98,211.91,4.2453]
[1758721111891,7.41,212.04,211.91,4.2453]
[1758721112295,7.41,212.04,211.83,69.96709857]
[1758721112296,7.41,212.01,211.83,69.96709857]
[1758721112596,7.41,212.01,211.83,66.0643]
[1758721112797,7.41,212.01,211.85,4.2465]
[1758721112798,4.2444,211.96,211.85,4.2465]
[1758721113498,4.2444,211.96,211.87,4.2461]
[1758721114601,7.41,211.97,211.89,4.2456]
[1758721114986,7.41,211.97,211.84,116.24]
[1758721117094,7.41,211.94,211.78,3.90279857]
[1758721117398,7.41,211.94,211.79,92.32]
[1758721117598,4.2458,211.89,211.8,4.2474]
[1758721118491,4.2458,211.89,211.79,92.32]
[1758721119092,4.2454,211.91,211.8,4.2474]
[1758721119292,4.2454,211.91,211.79,92.32]
[1758721119496,7.41,211.94,211.8,66.073]
[1758721119696,7.41,211.94,211.84,4.2466]
[1758721120207,7.41,211.94,211.86,4.2462]
[1758721120699,11.6549,211.94,211.8,5.40467699]
[1758721120894,7.41,211.94,211.82,4.2472]
[1758721121095,7.41,211.94,211.8,5.40467699]
[1758721121396,7.41,211.94,211.84,4.2468]
[1758721121905,4.2451,211.93,211.84,4.2468]
[1758721122497,7.41,211.94,211.86,4.2463]
[1758721122906,7.41,212.0,211.84,66.0595]
[1758721123102,7.41,212.0,211.87,66.0518]
[1758721123301,7.41,212.0,211.87,187.4118]
[1758721123802,7.41,212.0,211.89,66.0458]
[1758721124192,11.6537,212.0,211.87,121.36]
[1758721124798,7.41,212.0,211.88,66.0486]
[1758721125201,7.41,212.0,211.93,4.2448]
[1758721125497,7.41,212.0,211.9,66.0411]
[1758721125701,7.41,212.04,211.9,66.0411]
[1758721126099,4.2433,212.02,211.94,4.2446]
[1758721126505,7.41,212.04,211.94,4.2446]
[1758721127301,7.41,212.04,211.96,4.2443]
[1758721127502,7.41,212.04,211.91,66.039]
[1758721127810,7.41,212.04,211.95,4.2444]
[1758721128402,11.6529,212.04,211.95,4.2444]
[1758721129111,7.41,212.04,211.88,75.35567556]
[1758721129300,66.0063,212.02,211.88,5.40467699]
[1758721129497,7.41,212.02,211.87,121.36]
[1758721129803,7.41,212.0,211.87,125.26279857]
[1758721129995,4.2445,211.96,211.87,121.36]
[1758721130404,7.41,212.0,211.87,121.36]
[1758721130599,11.6538,212.0,211.91,4.2452]
[1758721130804,11.6538,212.0,211.87,187.4104]
[1758721130805,7.41,212.0,211.87,121.36]
[1758721131506,4.2442,211.97,211.89,4.2456]
[1758721131806,7.41,212.0,211.88,66.0485]
[1758721132012,5.40467699,212.05,211.91,66.0392]
[1758721132013,4.243,212.03,211.91,66.0392]
[1758721132309,7.41,212.05,211.91,3.90279857]
[1758721132507,4.2431,212.03,211.93,4.2449]
[1758721133007,4.2431,212.03,211.94,4.2446]
[1758721134104,4.2431,212.03,211.95,4.2444]
[1758721134605,11.6526,212.05,211.95,4.2444]
[1758721134806,7.75,212.11,211.95,121.1]
[1758721135014,7.75,212.11,211.95,125.00279857]
[1758721135208,7.75,212.11,211.95,121.1]
[1758721135514,4.2419,212.09,211.98,4.2438]
[1758721135806,11.9914,212.11,211.96,66.0235]
[1758721136008,7.75,212.11,211.96,66.0235]
[1758721136212,7.75,212.11,211.96,69.92629857]
[1758721136409,7.75,212.11,212.0,4.2434]
[1758721136609,7.75,212.11,211.95,62.12279857]
[1758721137214,4.2421,212.08,211.98,4.2438]
[1758721137712,7.75,212.11,211.95,128.14879857]
[1758721138014,4.2419,212.09,211.99,4.2436]
[1758721139112,7.75,212.11,211.95,62.12279857]
[1758721139314,7.75,212.11,211.96,69.92499857]
[1758721139812,7.75,212.11,212.01,4.2432]
[1758721140513,7.75,212.11,211.97,66.0208]
[1758721140514,7.38,212.16,212.02,66.0039]
[1758721140709,7.38,212.16,212.03,76.88]
[1758721141412,7.38,212.16,212.05,65.9945]
[1758721141614,7.38,212.21,212.08,65.9861]
[1758721141819,12.78467699,212.29,212.13,65.9708]
[1758721142117,12.78467699,212.29,212.14,121.1]
[1758721142514,4.2388,212.24,212.11,4.2413]
[1758721142722,7.38,212.27,212.13,121.12]
[1758721142908,7.38,212.27,212.13,187.0902]
[1758721143116,7.38,212.27,212.14,65.9678]
[1758721143308,7.38,212.27,212.16,65.9617]
[1758721143516,7.38,212.27,212.15,65.9648]
[1758721143817,7.38,212.27,212.13,121.12]
[1758721144012,7.38,212.27,212.1,66.95736143]
[1758721144217,7.38,212.27,212.11,187.1571]
[1758721144426,65.9344,212.25,212.1,0.97816143]
[1758721144627,7.38,212.24,212.1,23.49816143]
[1758721145725,12.78467699,212.22,212.1,0.97816143]
[1758721146127,4.2394,212.21,212.1,0.97816143]
[1758721146326,7.38,212.21,212.1,0.97816143]
[1758721146527,12.78467699,212.21,212.1,0.97816143]
[1758721146727,7.38,212.2,212.08,47.22]
[1758721146931,11.6197,212.2,212.08,47.22]
[1758721147131,7.38,212.2,212.08,47.22]
[1758721147830,7.38,212.25,212.12,65.9732]
[1758721148333,7.38,212.25,212.08,52.62467699]
[1758721148730,4.2388,212.24,212.12,4.2411]
[1758721149132,7.38,212.25,212.13,65.9708]
[1758721149330,7.38,212.25,212.16,4.2403]
[1758721149530,7.38,212.25,212.16,125.4003]
[1758721149738,7.38,212.25,212.16,121.16]
[1758721149932,5.40467699,212.31,212.16,121.16]
[1758721150129,7.38,212.3,212.16,121.16]
[1758721150435,7.38,212.3,212.18,65.9555]
[1758721150630,7.38,212.3,212.22,4.239]
[1758721150838,7.38,212.3,212.2,65.9488]
[1758721151026,7.38,212.3,212.18,65.9555]
[1758721151433,7.38,212.3,212.19,4.2396]
[1758721151634,7.38,212.3,212.14,343.28]
[1758721151937,7.38,212.26,212.14,464.42]
[1758721152138,7.38,212.26,212.15,65.9632]
[1758721152439,7.38,212.26,212.19,4.2397]
[1758721152733,7.38,212.26,212.14,464.42]
[1758721154332,65.9162,212.31,212.06,65.9926]
[1758721154333,65.9377,212.24,212.06,65.9926]
[1758721154537,7.38,212.23,212.07,121.18]
[1758721155338,4.2398,212.19,212.07,121.18]
[1758721155934,4.2398,212.19,212.08,4.2418]
[1758721156133,11.6198,212.19,212.08,4.2418]
[1758721156333,11.6198,212.19,212.09,65.9831]
[1758721156334,7.38,212.19,212.09,65.9831]
[1758721156627,4.2393,212.22,212.14,4.2407]
[1758721157241,4.2393,212.22,212.1,4.2414]
[1758721157537,4.2393,212.22,212.07,121.18]
[1758721158135,4.2397,212.2,212.07,121.18]
[1758721158335,7.38,212.21,212.04,65.999]
[1758721158336,12.78467699,212.21,212.04,65.999]
[1758721158539,12.78467699,212.21,212.08,121.16]
[1758721158738,65.9499,212.2,212.08,121.16]
[1758721158940,7.38,212.17,212.08,121.16]
[1758721159938,5.40467699,212.21,212.08,121.16]
[1758721160140,4.2399,212.19,212.08,121.16]
[1758721160342,4.2399,212.19,212.09,4.2416]
[1758721160741,5.40467699,212.21,212.08,121.16]
[1758721161640,5.40467699,212.21,212.11,4.2412]
[1758721161951,7.38,212.22,212.1,65.9801]
[1758721162434,7.38,212.22,212.12,65.9737]
[1758721162835,7.38,212.27,212.13,65.9709]
[1758721163037,7.38,212.32,212.18,65.9554]
[1758721163245,7.38,212.32,212.19,99.24]
[1758721163842,4.2375,212.31,212.23,4.2389]
[1758721164644,7.38,212.32,212.19,99.24]
[1758721164645,7.38,212.32,212.2,65.9489]
[1758721164849,7.38,212.32,212.19,99.24]
[1758721165049,7.38,212.32,212.22,4.2391]
[1758721165350,7.38,212.32,212.19,99.24]
[1758721165646,7.38,212.32,212.2,117.32]
[1758721165848,4.2382,212.27,212.2,117.32]
[1758721166047,7.39,212.28,212.1,5.40467699]
[1758721166244,73.3151,212.28,212.13,4.2408]
[1758721166442,73.3151,212.28,212.12,121.1]
[1758721166443,4.2384,212.26,212.12,121.1]
[1758721167044,4.2384,212.26,212.15,4.2404]
[1758721167240,7.39,212.28,212.13,65.9706]
[1758721167551,7.39,212.28,212.19,4.2397]
[1758721167846,7.39,212.28,212.19,57.02]
[1758721168049,7.39,212.28,212.21,4.2393]
[1758721168243,12.79467699,212.33,212.21,4.2393]
[1758721169141,135.4367,212.37,212.21,4.2393]
[1758721169142,5.40467699,212.38,212.23,65.94]
[1758721169342,7.39,212.39,212.26,65.9299]
[1758721169544,7.39,212.39,212.31,4.2373]
[1758721169744,7.39,212.39,212.27,121.04]
[1758721170151,4.236,212.38,212.27,125.2782]
[1758721170544,7.39,212.39,212.27,125.2782]
[1758721170740,7.39,212.39,212.27,125.278]
[1758721170949,7.39,212.39,212.27,121.04]
[1758721171445,7.39,212.39,212.26,4.2383]
[1758721171750,7.39,212.39,212.27,121.02]
[1758721172852,65.8937,212.38,212.27,121.02]
[1758721173246,4.2362,212.37,212.27,121.02]
[1758721174352,12.79467699,212.39,212.27,121.02]
[1758721174353,4.2366,212.35,212.27,121.02]
[1758721174543,12.79467699,212.39,212.27,121.02]
[1758721174947,4.2364,212.36,212.27,121.02]
[1758721175254,4.2364,212.36,212.19,65.952]
[1758721175255,7.39,212.36,212.19,65.9518]
[1758721175451,4.2369,212.34,212.2,120.9]
[1758721175750,71.29547699,212.39,212.2,120.9]
[1758721175751,7.39,212.41,212.23,65.9398]
[1758721175947,4.2362,212.37,212.28,4.2379]
[1758721176342,7.39,212.41,212.28,4.2379]
[1758721176542,7.39,212.41,212.28,42.46]
[1758721178251,7.39,212.41,212.3,4.2375]
[1758721179250,4.2356,212.4,212.3,4.2375]
[1758721179445,7.39,212.41,212.28,42.46]
[1758721179853,4.236,212.39,212.28,42.46]
[1758721180857,7.39,212.41,212.28,42.46]
[1758721181151,4.2353,212.42,212.31,4.2372]
[1758721181346,4.2348,212.44,212.3,65.9176]
[1758721181548,4.2348,212.44,212.31,65.914]
[1758721181753,7.39,212.45,212.25,65.9327]
[1758721182058,7.39,212.43,212.26,120.64]
[1758721182652,4.2354,212.41,212.26,120.64]
[1758721183654,4.2357,212.4,212.29,4.2376]
[1758721183855,4.2357,212.4,212.26,120.64]
[1758721184056,7.39,212.41,212.26,120.64]
[1758721184357,4.2361,212.38,212.29,4.2376]
[1758721184659,7.39,212.41,212.27,65.9273]
[1758721185758,11.6255,212.41,212.32,4.237]
[1758721185953,7.39,212.41,212.29,65.921]
[1758721186154,65.8669,212.47,212.3,65.9179]
[1758721186155,7.39,212.47,212.3,65.9179]
[1758721186463,4.2348,212.44,212.36,4.2363]
[1758721186648,7.39,212.47,212.34,104.56]
[1758721186845,7.39,212.47,212.4,4.2354]
[1758721187046,4.2337,212.5,212.4,4.2354]
[1758721187255,7.39,212.51,212.34,65.9058]
[1758721187561,7.39,212.5,212.32,8.6492132]
[1758721187755,7.39,212.49,212.33,120.56]
[1758721187954,4.2345,212.46,212.37,4.2361]
[1758721188155,7.39,212.49,212.37,4.2361]
[1758721188358,65.8672,212.47,212.33,120.56]
[1758721188556,4.2356,212.41,212.32,120.54]
[1758721188852,7.39,212.41,212.31,342.94]
[1758721189056,7.39,212.41,212.31,463.48]
[1758721191452,4.2358,212.39,212.31,463.48]
[1758721191655,7.39,212.41,212.31,463.48]
[1758721191856,4.2357,212.4,212.31,463.48]
[1758721192361,73.2766,212.41,212.31,463.48]
[1758721192759,65.8874,212.4,212.31,120.54]
[1758721193760,7.39,212.41,212.28,124.6578]
[1758721193959,7.39,212.41,212.28,120.42]
[1758721194658,4.2364,212.36,212.28,120.42]
[1758721194858,7.74,212.37,212.28,120.42]
[1758721196068,7.74,212.37,212.28,120.26]
[1758721196567,11.9762,212.37,212.28,120.26]
[1758721196966,4.2362,212.37,212.28,120.26]
[1758721198164,4.2358,212.39,212.28,120.26]
[1758721198365,65.8576,212.5,212.28,120.26]
[1758721198366,7.74,212.46,212.3,65.918]
[1758721198564,4.2353,212.42,212.33,4.2369]
[1758721199565,4.2353,212.42,212.28,186.1821]
[1758721199566,65.8721,212.45,212.31,4.2373]
[1758721199764,7.61,212.44,212.31,4.2373]
[1758721200363,7.61,212.41,212.28,124.4979]
[1758721200678,7.61,212.41,212.28,120.26]
[1758721201268,4.2359,212.39,212.3,4.2374]
[1758721201466,8.6492132,212.49,212.28,186.1841]
[1758721201467,7.61,212.45,212.28,186.1841]
[1758721201779,7.61,212.43,212.28,120.26]
[1758721202370,7.61,212.43,212.31,4.2373]
[1758721202772,7.61,212.38,212.28,120.26]
[1758721203269,7.61,212.43,212.3,4.2375]
[1758721204273,4.2359,212.39,212.31,4.2372]
[1758721204664,7.61,212.48,212.32,65.9117]
[1758721204865,4.2343,212.47,212.31,65.9137]
[1758721205065,7.61,212.48,212.32,65.9118]
[1758721205374,7.61,212.48,212.31,8.6492132]
[1758721205375,4.2345,212.46,212.33,65.9088]
[1758721205775,4.2345,212.46,212.38,4.2358]
[1758721206070,7.61,212.48,212.33,65.9088]
[1758721206071,7.61,212.48,212.37,120.16]
[1758721206478,4.2334,212.52,212.37,186.0557]
[1758721206672,4.2334,212.52,212.38,65.8934]
[1758721206873,7.61,212.54,212.39,65.8901]
[1758721207173,7.61,212.59,212.44,65.8742]
[1758721207374,7.61,212.59,212.46,65.8677]
[1758721207673,7.61,212.59,212.45,120.16]
[1758721208177,4.232,212.58,212.45,124.3945]
[1758721208368,7.61,212.59,212.45,120.16]
[1758721209578,7.61,212.59,212.45,120.22]
[1758721209767,4.2327,212.55,212.45,120.22]
[1758721209970,4.2327,212.55,212.44,4.2346]
[1758721210166,7.61,212.55,212.45,120.22]
[1758721211174,7.61,212.55,212.45,124.4545]
[1758721211480,73.4331,212.61,212.45,120.22]
[1758721211680,7.61,212.58,212.45,120.22]
[1758721212073,65.835,212.57,212.45,120.22]
[1758721212673,7.61,212.58,212.45,120.22]
[1758721213270,73.4449,212.57,212.42,3.91327919]
[1758721213482,73.4449,212.57,212.43,120.16]
[1758721213483,65.8377,212.56,212.43,120.16]
[1758721213971,4.2334,212.51,212.43,120.16]
[1758721214179,7.61,212.52,212.43,120.16]
[1758721215182,11.8432,212.52,212.43,120.16]
[1758721215978,7.61,212.52,212.43,120.16]
[1758721216282,4.2328,212.55,212.43,120.16]
[1758721216487,4.2328,212.55,212.44,4.2348]
[1758721217089,4.2328,212.55,212.46,4.2343]
[1758721217579,7.61,212.56,212.46,4.2343]
[1758721217785,7.61,212.56,212.47,4.234]
[1758721217978,4.232,212.58,212.45,65.8714]
[1758721218179,7.61,212.61,212.49,4.2337]
[1758721218382,7.61,212.61,212.43,128.8092132]
[1758721218577,7.61,212.61,212.44,65.8735]
[1758721218782,4.232,212.59,212.48,4.2338]
[1758721218978,7.61,212.61,212.46,65.8683]
[1758721219479,7.61,212.61,212.5,4.2335]
[1758721219480,4.2316,212.6,212.5,4.2335]
[1758721219682,7.61,212.61,212.43,132.72249239]
[1758721219875,4.2321,212.58,212.47,4.2341]
[1758721220080,4.2321,212.58,212.44,65.8745]
[1758721220280,7.61,212.61,212.47,65.8654]
[1758721220487,0.6959827,212.63,212.49,65.8589]
[1758721220890,0.6959827,212.63,212.46,65.8685]
[1758721221184,4.2312,212.62,212.5,4.2336]
[1758721221384,4.2312,212.62,212.51,115.96]
[1758721221786,4.2316,212.6,212.51,115.96]
[1758721221988,7.61,212.62,212.51,115.96]
[1758721222190,7.61,212.62,212.53,4.2328]
[1758721222390,7.61,212.62,212.51,115.96]
[1758721223484,65.8168,212.63,212.51,115.96]
[1758721223485,4.2311,212.63,212.51,115.96]
[1758721223682,7.61,212.66,212.51,115.96]
[1758721224289,4.2308,212.65,212.56,4.2323]
[1758721224489,4.2308,212.65,212.51,115.96]
[1758721224890,4.2308,212.65,212.54,4.2326]
[1758721225187,7.61,212.66,212.54,4.2326]
[1758721225388,7.61,212.66,212.51,120.1932]
[1758721225588,7.29,212.62,212.52,119.86]
[1758721226597,4.2319,212.59,212.52,119.86]
[1758721227396,65.8285,212.59,212.52,119.86]
[1758721227699,7.29,212.58,212.52,119.86]
[1758721227899,7.29,212.53,212.43,4.235]
[1758721228202,7.29,212.53,212.43,115.115]
[1758721228590,73.138,212.53,212.43,110.88]
[1758721228790,7.29,212.51,212.43,110.88]
[1758721228991,7.29,212.58,212.43,110.88]
[1758721229193,4.2329,212.54,212.44,4.2346]
[1758721229397,7.29,212.55,212.43,110.88]
[1758721230689,65.8439,212.54,212.43,110.88]
[1758721230897,7.29,212.53,212.43,110.88]
[1758721231599,7.29,212.58,212.43,110.88]
[1758721231800,7.29,212.58,212.44,65.8746]
[1758721232202,7.29,212.58,212.45,65.8716]
[1758721232709,7.29,212.58,212.43,119.5292132]
[1758721232904,11.522,212.58,212.47,4.234]
[1758721233099,11.522,212.58,212.44,65.8747]
[1758721234002,4.2324,212.56,212.48,4.2338]
[1758721234398,7.29,212.58,212.48,4.2338]
[1758721234595,4.232,212.58,212.49,4.2336]
[1758721234797,7.29,212.63,212.47,65.8644]
[1758721236107,4.2317,212.6,212.52,4.233]
[1758721236304,7.29,212.63,212.48,65.8622]
[1758721236305,7.29,212.63,212.51,103.34]
[1758721237006,7.29,212.7,212.56,65.8369]
[1758721237209,7.29,212.7,212.54,65.842]
[1758721237408,4.23,212.68,212.55,65.8403]
[1758721237708,4.23,212.68,212.54,65.842]
[1758721237709,7.29,212.7,212.56,65.8376]
[1758721237911,7.29,212.7,212.57,65.8337]
[1758721238111,7.29,212.7,212.56,65.8376]
[1758721238704,7.29,212.7,212.59,65.8282]
[1758721239009,7.29,212.7,212.62,4.231]
[1758721239308,7.29,212.74,212.61,65.8222]
[1758721239508,7.29,212.74,212.64,65.8119]
[1758721239706,65.7555,212.83,212.64,65.8119]
[1758721239707,7.29,212.79,212.67,65.8023]
[1758721239908,7.29,212.79,212.68,119.74]
[1758721240103,7.29,212.79,212.68,123.9699]
[1758721240306,7.29,212.79,212.68,119.74]
[1758721241008,7.29,212.79,212.69,4.2298]
[1758721241514,7.29,212.79,212.68,119.74]
[1758721241906,4.2282,212.77,212.68,119.74]
[1758721242107,73.0627,212.77,212.68,119.74]
[1758721242506,4.2292,212.72,212.68,119.74]
[1758721242707,73.0797,212.72,212.57,5.36566483]
[1758721243010,7.29,212.72,212.6,4.2315]
[1758721243614,4.2296,212.7,212.6,4.2315]
[1758721243906,7.29,212.72,212.6,4.2315]
[1758721244112,7.29,212.72,212.58,185.55]
[1758721244711,7.29,212.72,212.61,4.2312]
[1758721244908,7.29,212.72,212.6,65.8251]
[1758721245312,11.5193,212.72,212.58,185.55]
[1758721245512,11.5193,212.72,212.59,119.76]
[1758721245904,4.2288,212.74,212.6,65.8227]
[1758721246109,7.29,212.77,212.61,65.8217]
[1758721246707,7.29,212.75,212.59,119.76]
[1758721246913,7.29,212.75,212.6,119.74]
[1758721247418,7.29,212.71,212.56,5.36566483]
[1758721247622,7.29,212.71,212.57,80.32]
[1758721247920,11.5196,212.71,212.6,4.2316]
[1758721248225,7.29,212.71,212.6,4.2316]
[1758721248408,4.2296,212.7,212.6,4.2316]
[1758721249013,4.2296,212.7,212.57,80.32]
[1758721249515,7.29,212.71,212.58,119.72]
[1758721249719,7.29,212.71,212.58,185.5507]
[1758721249914,7.29,212.71,212.59,65.8277]
[1758721250112,7.29,212.77,212.63,4.2308]
[1758721250720,73.0662,212.76,212.6,4.2315]
[1758721250921,7.29,212.76,212.58,185.5507]
[1758721252015,65.7733,212.77,212.58,119.72]
[1758721252217,7.29,212.72,212.59,39.0]
[1758721252424,4.2296,212.7,212.59,43.2316]
[1758721252922,4.2296,212.7,212.59,39.0]
[1758721253118,7.29,212.72,212.59,39.0]